Cogmind - Beta 15 @@@ ROGUE MODE // 2025.07.13 @ 21:43:36 Player: Rockstar Result: Destroyed by S-27 Virus with Autogun Performance ------------- Evolutions (6) 3000 Regions Visited (8) 1600 Robots Destroyed (39) 195 Value Destroyed (1996) 1996 Prototype IDs (5) 100 Alien Tech Used (0) 0 Bonus (805) 805 TOTAL SCORE: 7696 Bonus ------- Follower Combat Kills 138 Registered with UFD 300 Met Optimus in HQ 500 Friendly Fire -133 Cogmind --------- Core Integrity 0/1150 Matter 300/300 Energy 100/100 System Corruption 10% Temperature Cool (0) Movement Core (50) Location -4/Extension Parts ------- > --- POWER (2) -------- (None) > --- PROPULSION (8) --- (None) > --- UTILITY (7) ------ (None) > --- WEAPON (2) ------- (None) > --- INVENTORY (5) ---- Dispersion Rifle Peak State ------------ > --- POWER ------------ Neutrino Core Neutrino Core > --- PROPULSION ------- Armored Medium Treads Armored Medium Treads Armored Medium Treads Heavy Treads Enhanced Armored Medium Treads Enhanced Armored Medium Treads Enhanced Armored Medium Treads > --- UTILITY ---------- Advanced Cryofiber Web Advanced Cooling System Improved Coolant Injector Quantum Capacitor Graphene Brace Dynamic Insulation System > --- WEAPON ----------- Dispersion Rifle HERF Cannon > --- INVENTORY -------- Armored Medium Treads Armored Medium Treads Armored Medium Treads Armored Medium Treads Hardcell Cannon [Rating: 127] Favorites ----------- Power Ion Engine Engine Ion Engine Power Core Neutrino Core Reactor Light Antimatter Reactor Propulsion Enhanced Armored Medium Treads Treads Enhanced Armored Medium Treads Leg Aluminum Leg Hover Unit Gravmag System Flight Unit Cooled Cesium-ion Thruster Utility Large Storage Unit Device Advanced Heat Sink Storage Large Storage Unit Processor Signal Interpreter Protection Improved Medium Armor Plating Weapon Assault Rifle Energy Gun EM Pulse Gun Energy Cannon HERF Cannon Ballistic Gun Assault Rifle Ballistic Cannon Advanced Assault Cannon Launcher Grenade Launcher Special Weapon Remote Datajack Slashing Weapon Axe Build | -11 -10 -10 -10 -9 -6 -5 -4 -4 ------- Run | Yrd Mat Min Sub Scr Fac Fac Fac Ext Slots Evolved 12 | . . . . . 8 2 2 . Power 1 | . . . . . 1 . . . Propulsion 6 | . . . . . 4 . 2 . Utility 5 | . . . . . 3 2 . . Weapon . | . . . . . . . . . Parts Attached 100 | 6 2 1 5 . 29 21 32 4 Power 14 | 1 . . . . 6 3 2 2 Engine 7 | 1 . . . . 5 1 . . Core 5 | . . . . . . 2 2 1 Reactor 2 | . . . . . 1 . . 1 Propulsion 24 | 2 . . 2 . 4 4 12 . Treads 14 | 2 . . . . . 1 11 . Leg 4 | . . . 2 . 1 1 . . Wheel . | . . . . . . . . . Hover 3 | . . . . . 2 1 . . Flight 3 | . . . . . 1 1 1 . Utility 39 | 1 2 1 . . 11 9 14 1 Device 29 | . 1 . . . 8 8 12 . Storage 2 | 1 1 . . . . . . . Processor 4 | . . 1 . . 2 . 1 . Hackware . | . . . . . . . . . Protection 4 | . . . . . 1 1 1 1 Artifact . | . . . . . . . . . Weapon 23 | 2 . . 3 . 8 5 4 1 Energy Gun 6 | 1 . . 1 . 3 . 1 . Energy Cannon 7 | . . . . . . 4 3 . Ballistic Gun 2 | 1 . . 1 . . . . . Ballistic Cannon 3 | . . . . . 3 . . . Launcher 2 | . . . 1 . . . . 1 Special Weapon 1 | . . . . . 1 . . . Impact Weapon . | . . . . . . . . . Slashing Weapon 2 | . . . . . 1 1 . . Piercing Weapon . | . . . . . . . . . Special Melee Weapon . | . . . . . . . . . Unidentified Prototypes 5 | . . . . . 1 3 1 . Parts Lost 55 | . . . 2 . 15 16 3 19 Power 9 | . . . . . 3 3 . 3 Propulsion 19 | . . . . . 6 4 . 9 Utility 18 | . . . . . 4 6 2 6 Weapon 9 | . . . 2 . 2 3 1 1 Highest Loss Streak 19 | . . . 1 . 7 5 2 19 To Critical Strikes 1 | . . . . . . . . 1 Average Backups 9 | 2 7 10 13 15 13 2 4 4 Power 2 | . 1 2 3 5 2 . . . Propulsion . | . 1 1 . . . . 2 3 Utility 3 | . 1 3 4 5 4 . . . Weapon 3 | . 3 3 4 5 4 1 1 . Tool/Special . | . . . . . . . . . Unused Backups 15 | . 3 . . . 8 1 3 . Power 1 | . . . . . 1 . . . Propulsion 1 | . 1 . . . . . . . Utility 5 | . 1 . . . 3 1 . . Weapon 6 | . 1 . . . 3 . 2 . Tool/Special 2 | . . . . . 1 . 1 . Average Slot Usage (%) 79 | . 97 100 99 100 70 17 77 82 Engine 8 | . 14 14 14 14 8 1 . . Core 2 | . . . . . . 1 8 9 Treads 14 | . 28 28 17 . . 1 30 34 Leg 7 | . . . 10 28 11 . . . Device 10 | . 11 9 . . 16 6 24 19 Storage 7 | . 14 14 14 14 5 . . . Processor 6 | . . 4 14 14 5 . . 4 Protection 1 | . . . . . 1 1 2 4 Energy Gun 7 | . 14 14 8 14 7 . 3 3 Energy Cannon 1 | . . . . . . 2 4 3 Ballistic Gun 7 | . 14 14 18 14 1 . . . Peak Build Rating 127 | 6 8 8 10 10 57 35 127 124 Average Rating 38 | 4 7 7 8 10 35 15 109 114 On Entrance 19 | . 6 8 8 10 10 5 2 123 Naked Turns 160 | . . . . . . 132 8 20 Heaviest Build 63 | 14 31 31 31 31 55 23 63 61 Greatest Support 256 | 40 40 40 40 20 36 23 256 256 Greatest Overweight (x) 15 | . . . 10 1 15 6 . . Average Overweight (x) . | . . . . 1 1 . . . Largest Inventory Capacity 15 | 8 15 15 15 15 15 5 5 5 Average Capacity 11 | 6 10 15 15 15 14 5 5 5 Most Carried 15 | 4 9 11 15 15 15 5 5 5 Average Carried 9 | 2 7 10 13 15 13 2 4 4 Final Capacity 15 | 8 15 15 15 15 5 5 5 5 Final Carried 15 | 4 9 11 15 15 4 5 5 1 Class Distribution -------------------- 76% | Mutant 20% | Scavenger-Mutant Dominant Class ---------------- Mutant | -10/Materials Mutant | -10/Mines Mutant | -10/Subcaves Mutant | -9/Scraptown Scavenger-Mutant | -6/Factory Mutant | -5/Factory Mutant | -4/Factory Mutant | -4/Extension Resources | -11 -10 -10 -10 -9 -6 -5 -4 -4 ----------- Run | Yrd Mat Min Sub Scr Fac Fac Fac Ext Matter Collected 1679 | 238 81 28 205 . 292 399 169 267 Remotely . | . . . . . . . . . Salvage Created 2041 | . 269 87 366 . 285 419 169 446 Parts 80 | . 17 2 18 . 14 9 7 13 Haulers Intercepted . | . . . . . . . . . Recyclers Shooed . | . . . . . . . . . Parts Field Recycled . | . . . . . . . . . Retrieved Matter . | . . . . . . . . . Parts Self-Destructed 2 | . . . 2 . . . . . Prevented . | . . . . . . . . . Kills | -11 -10 -10 -10 -9 -6 -5 -4 -4 ------- Run | Yrd Mat Min Sub Scr Fac Fac Fac Ext Combat Hostiles Destroyed 37 | . 5 2 10 . 7 6 2 5 Melee 1 | . . . . . . 1 . . Guns 23 | . 5 2 7 . 3 . 2 4 Cannons 8 | . . . . . 4 4 . . AOE 3 | . . . 3 . . . . . Classes Destroyed 8 | . 2 . 1 . 2 . 1 2 Watcher 1 | . 1 . . . . . . . Grunt 13 | . 5 2 . . 3 3 . . Sentry 8 | . . . . . 2 2 1 3 Hunter 2 | . . . . . . . . 2 Programmer 3 | . . . . . 2 1 . . Behemoth 1 | . . . . . . . 1 . Subdweller 10 | . . . 10 . . . . . Savage 1 | . . . . . . . . 1 Best Kill Streak 4 | . 3 1 4 . 2 3 1 2 Combat Bots Only 4 | . 3 1 4 . 2 3 1 2 Max Kills in Single Turn 1 | . 1 1 1 . 1 1 1 1 Gunslinging . | . . . . . . . . . Exploded 1 | . . . 1 . . . . . Melee 1 | . . . . . . 1 . . Uniques/NPCs Destroyed . | . . . . . . . . . Combat | -11 -10 -10 -10 -9 -6 -5 -4 -4 -------- Run | Yrd Mat Min Sub Scr Fac Fac Fac Ext Hostile Shots Fired 844 | . 27 6 36 . 230 144 49 352 Missed 270 | . 9 2 17 . 70 53 12 107 Hits 574 | . 18 4 19 . 160 91 37 245 Melee 4 | . . . . . 4 . . . Projectile 570 | . 18 4 19 . 156 91 37 245 AOE 6 | . . . . . 6 . . . Critical Strikes 31 | . 1 1 1 . 4 7 4 13 Actively Blocked 6 | . . . . . . 2 4 . Part Disruptions 1 | . . . . . . . . 1 Damage Taken 12521 | . 204 61 428 . 2458 2385 1163 5822 Core 3084 | . 21 . 113 . 801 999 38 1112 Absorbed by Shields . | . . . . . . . . . Reduced by Siege Mode 6 | . . . . . . . . 6 Redirected to Shielding 115 | . . . . . . 76 39 . Core Remaining (%) 37 | 100 . . . 46 5 . . . Volleys Fired 208 | . 13 6 38 . 42 24 29 56 Largest 2 | . 2 2 2 . 2 2 1 1 Hottest 115 | . 60 60 80 . 115 60 98 88 Shots Fired 311 | . 26 12 66 . 74 48 29 56 Gun 206 | . 26 12 58 . 48 . 10 52 Cannon 93 | . . . . . 26 48 19 . Launcher 12 | . . . 8 . . . . 4 Special . | . . . . . . . . . Kinetic 90 | . 13 6 45 . 26 . . . Thermal 175 | . . . 7 . 39 48 29 52 Explosive 12 | . . . 8 . . . . 4 Electromagnetic 34 | . 13 6 6 . 9 . . . Robot Hit Streak 15 | . 6 9 14 . 10 11 14 15 Robot Miss Streak 4 | . 2 1 1 . 2 3 2 4 Penetration Max . | . . . . . . . . . Secondary Targets 2 | . 2 . . . . . . . Max Gunslinging Chain 1 | . 1 . . . . . . . Capacitor 81 | . . . . . . . 29 52 Shots Hit Robots 226 | . 17 9 52 . 57 36 25 30 Core Hits 85 | . 11 5 19 . 19 12 7 12 Critical Kills 3 | . . . 1 . . . . 2 Critical Parts Destroyed 7 | . . . 1 . . . 2 4 Critical Strikes 13 | . . . 3 . 1 . 2 7 Destroy 12 | . . . 3 . . . 2 7 Blast 1 | . . . . . 1 . . . Melee Attacks 1 | . . . . . . 1 . . Impact . | . . . . . . . . . Slashing 1 | . . . . . . 1 . . Piercing . | . . . . . . . . . Sneak Attacks . | . . . . . . . . . Combat Hostiles . | . . . . . . . . . Follow-up Attacks . | . . . . . . . . . Damage Inflicted 5675 | . 271 114 1218 . 1358 980 895 839 Guns 2946 | . 271 114 765 . 716 . 243 837 Cannons 2214 | . . . . . 622 940 652 . Explosions 455 | . . . 453 . . . . 2 Melee 40 | . . . . . . 40 . . Ramming 20 | . . . . . 20 . . . Kinetic 1362 | . 98 35 607 . 622 . . . Thermal 3367 | . . . 97 . 598 940 895 837 Explosive 455 | . . . 453 . . . . 2 Electromagnetic 431 | . 173 79 61 . 118 . . . Impact . | . . . . . . . . . Slashing 40 | . . . . . . 40 . . Piercing . | . . . . . . . . . Highest Corruption 10 | . . . . . 3 2 . 10 Average Corruption 1 | . . . . . 1 1 . 6 Corruption Purged 3 | . . . . . 3 . . . Corruption Blocked . | . . . . . . . . . Effects 14 | . . . . . 10 2 . 2 Message Errors 2 | . . . . . 1 . . 1 Matter Fused 3 | . . . . . 3 . . . Heat Flow Errors 3 | . . . . . 2 1 . . Energy Discharges 1 | . . . . . 1 . . . Parts Rejected 2 | . . . . . 1 . . 1 Data Loss (minor) 1 | . . . . . 1 . . . Alerts 2 | . . . . . 1 1 . . Overload Shots . | . . . . . . . . . Overflow Damage 53 | . . . . . 24 29 . . Projectiles 53 | . . . . . 24 29 . . Explosions . | . . . . . . . . . Melee . | . . . . . . . . . Knockbacks 11 | . . . . . 11 . . . Impact . | . . . . . . . . . Kinetic 11 | . . . . . 11 . . . Secondary . | . . . . . . . . . Self-Inflicted Damage 7 | . . . . . 7 . . . Shots . | . . . . . . . . . Rammed 7 | . . . . . 7 . . . Targets Rammed 8 | . . . . . 8 . . . Kicked 1 | . . . . . 1 . . . Crushed . | . . . . . . . . . Highest Temperature 346 | . 84 54 . . 203 167 170 346 Average Temperature 78 | . 42 35 . . 40 87 125 100 Received Heat Transfer 2605 | . 132 54 90 . 597 324 108 1300 Siege Activations 1 | . . . . . . . . 1 Total Turns 6 | . . . . . . . . 6 Longest Duration 6 | . . . . . . . . 6 Martial Activations . | . . . . . . . . . Shielding Activations . | . . . . . . . . . Robots Disrupted 1 | . . 1 . . . . . . Combat Hostiles 1 | . . 1 . . . . . . Robots Corrupted . | . . . . . . . . . Combat Hostiles . | . . . . . . . . . Parts Fried 3 | . . . . . 3 . . . Impact Corruptions . | . . . . . . . . . Robots Melted 2 | . . . . . . 1 . 1 Combat Hostiles 2 | . . . . . . 1 . 1 Parts Melted 5 | . . . . . . 1 . 4 Heat Transferred 4547 | . . . 125 . 797 1295 1183 1147 Parts Sabotaged . | . . . . . . . . . Parts Stolen . | . . . . . . . . . Parts Stripped . | . . . . . . . . . Power Chain Reactions . | . . . . . . . . . Alert | -11 -10 -10 -10 -9 -6 -5 -4 -4 ------- Run | Yrd Mat Min Sub Scr Fac Fac Fac Ext Maximum Alert Level . | . . . . . . . . . Low Security (%) 100 | 100 100 100 . . 100 100 100 100 Level 1 . | . . . . . . . . . Level 2 . | . . . . . . . . . Level 3 . | . . . . . . . . . Level 4 . | . . . . . . . . . Level 5 . | . . . . . . . . . High Security . | . . . . . . . . . Max Security . | . . . . . . . . . Peak Influence 87 | . 87 40 . . 82 82 40 53 Initial 35 | . . . . . . 28 35 . Average 12 | . 32 5 . . 10 19 6 10 Influence Increases 1117 | . 127 50 . . 311 316 84 229 Destroy 0b10 Robot/C 560 | . 100 40 . . 140 120 40 120 Destroy 0b10 Robot/NC 5 | . 5 . . . . . . . Destroy Leader 152 | . 22 10 . . 50 40 20 10 Allied During Kill 20 | . . . . . . . . 20 Successful Hack 26 | . . . . . 14 . 5 7 Disable Machine 90 | . . . . . 15 30 15 30 Destroy Structure 54 | . . . . . 2 6 4 42 Lose Combat Pursuer 210 | . . . . . 90 120 . . Influence Decreases 1117 | . 127 50 . . 253 300 158 229 Entered New Map 69 | . . . . . . 30 39 . Time Decay 812 | . 127 50 . . 192 155 115 173 Lost Part 180 | . . . . . 61 115 4 . Lost Ally 56 | . . . . . . . . 56 Squads Dispatched 14 | . 1 . . . 8 3 1 1 Investigation 2 | . 1 . . . . . . 1 Extermination 6 | . . . . . 3 2 1 . Reinforcement 4 | . . . . . 3 1 . . Assault 2 | . . . . . 2 . . . Garrison . | . . . . . . . . . Intercept . | . . . . . . . . . Searches Triggered . | . . . . . . . . . Construction Impeded 1 | . . . . . 1 . . . Haulers Reinforced . | . . . . . . . . . Active Scanning Responses . | . . . . . . . . . Cargo Convoy Interrupts . | . . . . . . . . . Stealth | -11 -10 -10 -10 -9 -6 -5 -4 -4 --------- Run | Yrd Mat Min Sub Scr Fac Fac Fac Ext Distress Signals 8 | . 1 . . . 1 1 1 4 Communications Jammed . | . . . . . . . . . Distress Signals . | . . . . . . . . . Times Spotted 106 | . 12 3 14 . 28 17 10 22 Peak Tracking Total 14 | . 5 2 3 . 9 8 4 14 Tactical Retreats 9 | . 3 . . . 2 4 . . Traps | -11 -10 -10 -10 -9 -6 -5 -4 -4 ------- Run | Yrd Mat Min Sub Scr Fac Fac Fac Ext Traps Triggered 3 | . . . . . 2 1 . . Indirectly . | . . . . . . . . . Trap Hack Attempts . | . . . . . . . . . Triggered . | . . . . . . . . . Disarmed . | . . . . . . . . . Reprogrammed . | . . . . . . . . . Reused . | . . . . . . . . . Traps Extracted . | . . . . . . . . . Installed . | . . . . . . . . . Triggered . | . . . . . . . . . Machines | -11 -10 -10 -10 -9 -6 -5 -4 -4 ---------- Run | Yrd Mat Min Sub Scr Fac Fac Fac Ext Machines Disabled 6 | . . . . . 1 2 1 2 Max in Single Turn 1 | . . . . . 1 1 1 1 Garrison Access 1 | . . . . . 1 . . . Machines Repaired . | . . . . . . . . . Machines Dismantled . | . . . . . . . . . Machines Sabotaged . | . . . . . . . . . Overloaded Fab Kills . | . . . . . . . . . Hacking | -11 -10 -10 -10 -9 -6 -5 -4 -4 --------- Run | Yrd Mat Min Sub Scr Fac Fac Fac Ext Machines Accessed 14 | . 1 1 . 1 2 2 2 5 Terminals 10 | . 1 1 . . 1 2 . 5 Fabricators 1 | . . . . . . . 1 . Repair Stations 1 | . . . . . . . 1 . Recycling Units 1 | . . . . . 1 . . . Scanalyzers . | . . . . . . . . . Garrison Access . | . . . . . . . . . Total Hacks 24 | . 3 1 . 1 3 3 5 8 Successful 9 | . 1 1 . 1 1 . 2 3 Failed 15 | . 2 . . . 2 3 3 5 Catastrophic 4 | . 1 . . . . 1 . 2 Database Lockouts . | . . . . . . . . . Manual 6 | . 3 . . . . 3 . . Terminals 17 | . 3 1 . . 2 3 . 8 Fabricators 3 | . . . . . . . 3 . Repair Stations 2 | . . . . . . . 2 . Recycling Units 1 | . . . . . 1 . . . Scanalyzers . | . . . . . . . . . Garrison Access . | . . . . . . . . . Terminal Hacks 6 | . . 1 . 1 1 . . 3 Record 1 | . . . . 1 . . . . Open Door 3 | . . . . . . . . 3 Locate Traps 1 | . . . . . 1 . . . Zone Layout 1 | . . 1 . . . . . . Fabricator Hacks 2 | . . . . . . . 2 . Network Status 1 | . . . . . . . 1 . Build 1 | . . . . . . . 1 . Repair Station Hacks . | . . . . . . . . . Recycling Unit Hacks . | . . . . . . . . . Scanalyzer . | . . . . . . . . . Garrison Access Hacks . | . . . . . . . . . Unauthorized Hacks 1 | . 1 . . . . . . . Terminals 1 | . 1 . . . . . . . Track 1 | . 1 . . . . . . . Fabricators . | . . . . . . . . . Repair Stations . | . . . . . . . . . Recycling Units . | . . . . . . . . . Scanalyzers . | . . . . . . . . . Garrison Access . | . . . . . . . . . Data Cores Recovered . | . . . . . . . . . Used . | . . . . . . . . . Hacking Detections 10 | . 1 1 . . 2 2 1 3 Full Trace Events 2 | . 1 . . . . . . 1 Feedback Events . | . . . . . . . . . Feedback Blocked . | . . . . . . . . . Robot Schematics Acquired . | . . . . . . . . . Robots Built . | . . . . . . . . . Authchips . | . . . . . . . . . Time . | . . . . . . . . . Total Robot Build Rating . | . . . . . . . . . Part Schematics Acquired . | . . . . . . . . . Parts Built 2 | . . . . . . . 2 . Authchips . | . . . . . . . . . Time 117 | . . . . . . . 117 . Total Part Build Rating 14 | . . . . . . . 14 . Parts Repaired . | . . . . . . . . . Time . | . . . . . . . . . Parts Recycled . | . . . . . . . . . Recycled Matter . | . . . . . . . . . Retrieved Matter . | . . . . . . . . . Retrieved Components . | . . . . . . . . . Parts Scanalyzed . | . . . . . . . . . Part Schematics Acquired . | . . . . . . . . . Parts Damaged . | . . . . . . . . . Bothacking | -11 -10 -10 -10 -9 -6 -5 -4 -4 ------------ Run | Yrd Mat Min Sub Scr Fac Fac Fac Ext Used RIF Installer . | . . . . . . . . . Robots Hacked . | . . . . . . . . . Non-combat . | . . . . . . . . . Combat . | . . . . . . . . . Robot Hacks Applied . | . . . . . . . . . Relay Couplers Released 2 | . . . . . 2 . . . Machine Destruction 2 | . . . . . 2 . . . Fabnet Peak Effective % . | . . . . . . . . . Robots Rewired 4 | . . . . . . . . 4 Allies Hacked 1 | . . . . . . . . 1 Hacks Repelled . | . . . . . . . . . Allies | -11 -10 -10 -10 -9 -6 -5 -4 -4 -------- Run | Yrd Mat Min Sub Scr Fac Fac Fac Ext Total Allies 10 | . . 3 . . . . . 7 Largest Group 4 | . . 3 3 . . . . 4 Highest-Rated Group 151 | . . 40 40 . . . . 151 Highest-Rated Ally 46 | . . 16 16 . . . . 46 Total Orders 1 | . . . . . . . . 1 GUARD 1 | . . . . . . . . 1 Ally Attacks 56 | . . . 38 . . . . 18 Total Damage 827 | . . . 380 . . . . 447 Kills 4 | . . . 3 . . . . 1 Allies Corrupted . | . . . . . . . . . Allies Melted 1 | . . . . . . . . 1 Intel | -11 -10 -10 -10 -9 -6 -5 -4 -4 ------- Run | Yrd Mat Min Sub Scr Fac Fac Fac Ext Active Infowar (turns) 1682 | . 275 222 . . 639 . 151 395 Optics 522 | . . . . . 522 . . . Sensors 780 | . . . . . 279 . 106 395 ECM 898 | . 275 222 . . 356 . 45 . Robot Analysis Total . | . . . . . . . . . Derelict Logs Recovered 2 | . . 1 1 . . . . . Drone Launches . | . . . . . . . . . Drone Recoveries . | . . . . . . . . . Exploration | -11 -10 -10 -10 -9 -6 -5 -4 -4 ------------- Run | Yrd Mat Min Sub Scr Fac Fac Fac Ext Turns Passed 5764 | 75 327 346 1361 382 1388 629 624 632 Spaces Moved 3210 | 40 167 193 727 202 606 564 391 320 Core 656 | 1 . . 1 . 200 397 19 38 Treads 1541 | 39 167 193 477 . . 81 302 282 Legs 859 | . . . 249 202 406 2 . . Wheels . | . . . . . . . . . Hover . | . . . . . . . . . Flight 154 | . . . . . . 84 70 . Fastest Speed 40 | 50 160 160 160 190 50 40 40 50 Average Speed 152 | 157 160 160 170 190 190 80 135 150 Slowest Speed 800 | 160 160 160 550 190 800 350 166 170 Overloaded Moves . | . . . . . . . . . Propulsion Burnouts . | . . . . . . . . . Robots Hopped . | . . . . . . . . . Potential Cave-ins 13 | . . . . . . . . 13 Cave-ins Triggered . | . . . . . . . . . Exploration Rate (%) 28 | 4 33 41 55 30 21 18 12 46 Regions Visited 8 Branch Regions 4 Pre-discovered Areas 2 | . . 1 1 . . . . . Known Exits Taken 4 | . . 1 1 1 . . 1 . Unknown Exits Taken 4 | 1 1 . . . 1 1 . . Scrap Searched 1 | . . 1 . . . . . . Spaces Dug 9 | . . . . . . . . 9 Terrain Destroyed 109 | . . . 55 . 2 3 2 47 Melee . | . . . . . . . . . Projectile 16 | . . . . . 2 3 2 9 AOE 93 | . . . 55 . . . . 38 Terrain Rammed . | . . . . . . . . . Walls Destroyed . | . . . . . . . . . Machines Disabled . | . . . . . . . . . Actions | -11 -10 -10 -10 -9 -6 -5 -4 -4 --------- Run | Yrd Mat Min Sub Scr Fac Fac Fac Ext Total 3850 | 49 202 218 781 201 762 690 480 467 Wait 126 | . 9 3 . . 36 45 1 32 Move 3202 | 39 166 192 726 201 605 563 390 320 Hop . | . . . . . . . . . Pick Up 48 | 4 8 1 7 . 12 9 6 1 Fast Attach 65 | 6 1 1 1 . 16 13 25 2 Attach 42 | . . . 3 . 11 16 7 5 Detach 30 | . . 1 2 . 7 13 5 2 Swap 19 | . 1 . 2 . 9 . 3 4 Drop 49 | . 4 . 2 . 16 6 14 7 Fire 208 | . 13 6 38 . 42 24 29 56 Melee 1 | . . . . . . 1 . . Ram 7 | . . . . . 7 . . . Kick 1 | . . . . . 1 . . . Crush . | . . . . . . . . . Escape Stasis . | . . . . . . . . . Rewire 52 | . . 14 . . . . . 38 Trap . | . . . . . . . . . Miscellaneous . | . . . . . . . . . Route ------- -11/Scrapyard -10/Materials -10/Mines (discovered 3 exits: *Mat x2 / *Sub) -10/Subcaves (discovered 2 exits: *Mat / *Scr) -9/Scraptown -6/Factory -5/Factory -4/Factory -4/Extension History --------- Turn | Location | Event 29 | -11/Scrapyard | Discovered new exit (range 16) 76 | -11/Scrapyard | Entered Materials 324 | -10/Materials | Build established: Mutant 387 | -10/Materials | Discovered new exit (range 9) 403 | -10/Materials | Entered Mines 550 | -10/Mines | Learned location of Zion (-7) 662 | -10/Mines | Discovered new exit (range 5) 672 | -10/Mines | Assisted by bots powering up and referring to "LRC-V3" 673 | -10/Mines | Identified exit to Materials 699 | -10/Mines | Discovered exit to Materials (range 7) 734 | -10/Mines | Discovered new exit (range 10) 747 | -10/Mines | Identified exit to Subcaves 749 | -10/Mines | Entered Subcaves 749 | -10/Subcaves | Accompanied by 3 allies 750 | -10/Subcaves | Approached by a straggling Scientist 1351 | -10/Subcaves | Ambushed by Subdweller buried in earth 1351 | -10/Subcaves | Ambushed by Subdweller buried in earth 1359 | -10/Subcaves | Ambushed by Subdweller buried in earth 1381 | -10/Subcaves | Shifting Twisted Machinery released Battle Cannon 1387 | -10/Subcaves | Learned Materials terminal intel 1402 | -10/Subcaves | Shifting Twisted Machinery released Battle Cannon 1411 | -10/Subcaves | A swath of the cavern ceiling suddenly collapsed 1468 | -10/Subcaves | Shifting Twisted Machinery released Mak. System Restoration Module 1841 | -10/Subcaves | Met a Zionite searching for "candidates" 1984 | -10/Subcaves | Discovered new exit (range 8) 2012 | -10/Subcaves | Identified exit to Materials 2049 | -10/Subcaves | Core integrity fell below 50% 2093 | -10/Subcaves | Scientist uncovered a shortcut to Scraptown 2106 | -10/Subcaves | Identified exit to Scraptown 2110 | -10/Subcaves | Entered Scraptown 2224 | -9/Scraptown | Visited UFD Registry 2224 | -9/Scraptown | Registered with UFD as "Gaussnade" 2378 | -9/Scraptown | Met Optimus 2378 | -9/Scraptown | Accepted into 0bPrime 2483 | -9/Scraptown | Discovered new exit (range 5) 2490 | -9/Scraptown | Identified exit to Factory 2492 | -9/Scraptown | Entered Factory 2492 | -6/Factory | Evolved 8 slots: Power x1, Propulsion x4, Utility x3 2811 | -6/Factory | Build established: Scavenger-Mutant 3075 | -6/Factory | Lost 7 parts (2p2n2u1w) 3485 | -6/Factory | Lost 4 parts (1p3n) 3725 | -6/Factory | Build established: Mutant 3849 | -6/Factory | Core integrity fell below 50% 3870 | -6/Factory | Discovered new exit (range 8) 3878 | -6/Factory | Core integrity fell below 20% 3880 | -6/Factory | Entered another Factory area 3880 | -5/Factory | Evolved 2 slots: Utility x2 4097 | -5/Factory | Core integrity fell below 50% 4125 | -5/Factory | Lost 4 parts (1p1n2u) 4406 | -5/Factory | Lost 5 parts (1p2n1u1w) 4428 | -5/Factory | Core integrity fell below 20% 4464 | -5/Factory | Lost 3 parts (1n1u1w) 4500 | -5/Factory | Discovered new exit (range 16) 4509 | -5/Factory | Entered another Factory area 4509 | -4/Factory | Evolved 2 slots: Propulsion x2 4550 | -4/Factory | Found Quantum Capacitor 4632 | -4/Factory | Fabricated Imp. Remote Shield? 4640 | -4/Factory | Spotted B-86 Titan 4688 | -4/Factory | Destroyed B-86 Titan 5012 | -4/Factory | Build established: Scavenger-Mutant 5112 | -4/Factory | Discovered new exit (range 14) 5132 | -4/Factory | Identified exit to Extension 5133 | -4/Factory | Entered Extension 5149 | -4/Extension | Disrupted transfer network 5203 | -4/Extension | Rescued a captive Derelict 5232 | -4/Extension | Rescued a captive Derelict 5314 | -4/Extension | Build established: Mutant 5498 | -4/Extension | Rescued a captive Derelict 5675 | -4/Extension | Spotted B-86 Titan 5688 | -4/Extension | Spotted B-86 Titan 5743 | -4/Extension | Lost 4 allies 5746 | -4/Extension | Core integrity fell below 50% 5750 | -4/Extension | System corruption reached 10% 5755 | -4/Extension | Core integrity fell below 20% 5765 | -4/Extension | Destroyed by S-27 Virus with Autogun Last Messages --------------- Penetrated by Slug. Acquired 8 matter. Neutrino Core destroyed. Arm. Medium Treads destroyed. Penetrated by Slug. Critical hit (Meltdown: +380). 9N|NEG:GFFP&MUAL:G2=PZX&&QFUGC R Penetrated by Slug. Arm. Medium Treads destroyed. Penetrated by Slug. Critical hit (Destroy). Arm. Medium Treads destroyed. Adv. Cooling System destroyed. Penetrated by Slug. Slug penetrates Wall. Penetrated by Slug. Slug penetrates Wall. Penetrated by Slug. C-30 ARC bursts open, deploying its payload. S-27 Virus unfolds itself. Map ----- +----------------------------------------------------+ | ?????????????????????????????????????????????????? | | ?????????????????????????????????????????????????? | | ?????????????????????????????????????????????????? | | ?????????????????????????????????????????????????? | | ?????????????????????????????????????????????????? | | ?????????????????????????????????????????????????? | | ?????????????????????????????????????????????????? | | ?????????????????????????????????????????????????? | | ?????????????????????????????????????????????????? | | ?????????????????????????????????????????????????? | | ?????????????????????????????????????????????????? | | ?????????????????????????????????????????????????? | | ?????????????????????????????????????????????????? | | ?????????????????????????????????????????????????? | | ?????????????????????????????????????????????????? | | ?????????????????????????????????????????????????? | | ?????????????????????????????????????????????????? | | ?????????????????????????????????????????????????? | | ?????????????????????????????????????????????????? | | ?????????????????????????????????????????????????? | | ?????????????????????????????????????????????????? | | ?????????????????????????????????????????????????? | | ########################################?????????? | | ????????? | | ????????? | | @ ????????? | | ss ????????? | | "s ????????? | | ########################################?????????? | | ?????????????????????????????????????????????????? | | ?????????????????????????????????????????????????? | | ?????????????????????????????????????????????????? | | ?????????????????????????????????????????????????? | | ?????????????????????????????????????????????????? | | ?????????????????????????????????????????????????? | | ?????????????????????????????????????????????????? | | | | | | | | | | | | | | | | | | | | | | | | | | | | | +----------------------------------------------------+ Best States ------------- Heat Dissipation 112 Coolant Potential 160 Energy Generation 35 Energy Capacity 530 Matter Stores 300 Matter Capacity 300 Sight Range 21 Robot Scan Range 16 Terrain Scan Density 10 ECM Strength 2 Base Temperature (-) 200 EM Shielding 2 Armor Coverage 225 Weapon Shielding 66 Evasion (%) 70 Recoil Reduction 8 Energy Filtering 30 Particle Charging 20 Item Schematics ----------------- None Robot Schematics ------------------ None Fabricated ------------ Imp. Remote Shield | x2 | -4/Factory | Preloaded Repaired ---------- Nothing Alien Tech Used ----------------- None Achievements -------------- None Challenges ------------ None Game ------ Seed DefenseZioniteWheel Manual? 0 Play Time 01:12:39 Cumulative 73.7 hours Start 2025.07.13 @ 20:06:45 End 2025.07.13 @ 21:43:36 Sessions 1 Manual Loads 0 Difficulty Rogue Special Mode None Game No. 63 Rogue 60 Adventurer 1 Explorer 2 Win Type - Total 0 Types 0/0/0/0/0/0/0/0/0/0 Lore% 23 Gallery% 42 Achievement% 33 Wizard Run 0 Options --------- Layout 0 ASCII 0 Keyboard 0 Movement Mouse Keybinds 0 Fullscreen 2 Font 24/Smallcaps Map View 76x50 Zoom Use 0% Tactical HUD 0 Map Filters NONE Filters NONE Steam 1 RUN: 33f35212-b630-4f73-8eca-e19c5197c439